bitfinex/quotes_BTCUSD_20240918
["timestamp","ask_amount","ask_price","bid_price","bid_amount"]
[1726644876252,1.55854577,60579.0,60578.0,0.08462]
[1726644876749,1.5844485,60579.0,60578.0,0.08462]
[1726644877253,1.43341675,60579.0,60578.0,0.08462]
[1726644877505,1.5844485,60579.0,60578.0,0.08462]
[1726644879013,0.995677,60571.0,60570.0,0.001646]
[1726644879751,1.02158207,60571.0,60570.0,0.001646]
[1726644880456,1.02558207,60571.0,60570.0,0.001646]
[1726644881197,1.02658207,60571.0,60570.0,0.002646]
[1726644881447,1.35877307,60571.0,60570.0,0.002646]
[1726644881709,1.42533135,60571.0,60570.0,0.002646]
[1726644882414,1.42433135,60571.0,60570.0,0.001646]
[1726644882626,1.42033135,60571.0,60570.0,0.001646]
[1726644882895,1.42133135,60571.0,60570.0,0.002646]
[1726644883158,1.42733135,60571.0,60570.0,0.003646]
[1726644883408,1.39542628,60571.0,60570.0,0.002646]
[1726644883650,1.40142628,60571.0,60570.0,0.003646]
[1726644884129,1.40042628,60571.0,60570.0,0.002646]
[1726644884399,1.40842628,60571.0,60570.0,0.003646]
[1726644884643,1.94264903,60571.0,60570.0,0.003646]
[1726644887934,1.96855794,60571.0,60570.0,0.003646]
[1726644890603,1.93855794,60571.0,60570.0,0.003646]
[1726644890828,1.96855794,60571.0,60570.0,0.003646]
[1726644893405,1.94264903,60571.0,60570.0,0.003646]
[1726644894922,1.45942628,60571.0,60570.0,0.003646]
[1726644895207,1.40642628,60571.0,60570.0,0.003646]
[1726644896203,1.40842628,60571.0,60570.0,0.003646]
[1726644896992,1.40642628,60571.0,60570.0,0.003646]
[1726644897215,1.46142628,60571.0,60570.0,0.003646]
[1726644897747,1.94264903,60571.0,60570.0,0.003646]
[1726644898010,1.99855785,60571.0,60570.0,0.003646]
[1726644898278,1.94670649,60571.0,60570.0,0.003646]
[1726644898533,2.04670649,60571.0,60570.0,0.003646]
[1726644900119,2.09865084,60571.0,60570.0,0.003646]
[1726644903427,2.07274202,60571.0,60570.0,0.003646]
[1726644904563,1.74255102,60571.0,60570.0,0.003646]
[1726644904806,1.74055102,60571.0,60570.0,0.003646]
[1726644905478,1.74255102,60571.0,60570.0,0.003646]
[1726644906160,1.71255102,60571.0,60570.0,0.003646]
[1726644906644,1.73845946,60571.0,60570.0,0.003646]
[1726644907061,1.76845946,60571.0,60570.0,0.003646]
[1726644907422,1.76645946,60571.0,60570.0,0.003646]
[1726644910391,1.76845946,60571.0,60570.0,0.003646]
[1726644913366,1.74055102,60571.0,60570.0,0.003646]
[1726644915224,1.63445102,60571.0,60570.0,0.003646]
[1726644915712,1.53445102,60571.0,60570.0,0.003646]
[1726644916003,0.014,60571.0,60570.0,0.003646]
[1726644916264,0.014,60571.0,60570.0,0.49894]
[1726644917199,0.006,60571.0,60570.0,0.49794]
[1726644917436,0.165085,60575.0,60570.0,0.166744]
[1726644917677,0.008,60571.0,60570.0,0.167744]
[1726644917905,0.018,60571.0,60570.0,0.168744]
[1726644918135,0.01,60571.0,60570.0,0.167744]
[1726644918394,0.01,60571.0,60570.0,0.002646]
[1726644918637,0.01,60571.0,60570.0,0.003646]
[1726644920019,0.01,60571.0,60570.0,0.002646]
[1726644920492,0.017,60571.0,60570.0,0.003646]
[1726644925147,0.182095,60571.0,60570.0,0.003646]
[1726644925608,0.017,60571.0,60570.0,0.003646]
[1726644926053,0.02443624,60571.0,60570.0,0.003646]
[1726644926511,0.05034006,60571.0,60570.0,0.003646]
[1726644930669,0.21543506,60571.0,60570.0,0.003646]
[1726644931539,0.20843506,60571.0,60570.0,0.002646]
[1726644931747,0.19843506,60571.0,60570.0,0.001646]
[1726644931941,0.21643506,60571.0,60570.0,0.003646]
[1726644933204,0.52072224,60571.0,60570.0,0.003646]
[1726644933605,0.91747152,60571.0,60570.0,0.003646]
[1726644933810,1.34596252,60571.0,60570.0,0.003646]
[1726644934034,1.40096252,60571.0,60570.0,0.003646]
[1726644934637,1.39096252,60571.0,60570.0,0.002646]
[1726644934858,1.38296252,60571.0,60570.0,0.001646]
[1726644935063,1.38296252,60571.0,60570.0,0.003646]
[1726644935064,1.39696252,60571.0,60570.0,0.003646]
[1726644935286,1.38896252,60571.0,60570.0,0.002646]
[1726644935958,1.54006376,60571.0,60570.0,0.002646]
[1726644936611,1.55997123,60571.0,60570.0,0.001646]
[1726644936813,1.57397123,60571.0,60570.0,0.002646]
[1726644937283,1.58797123,60571.0,60570.0,0.002646]
[1726644938017,1.58597123,60571.0,60570.0,0.002646]
[1726644943321,1.56006376,60571.0,60570.0,0.002646]
[1726644946666,1.53006376,60571.0,60570.0,0.002646]
[1726644947366,0.59728052,60571.0,60570.0,0.002646]
[1726644947593,0.92747152,60571.0,60570.0,0.002646]
[1726644948057,0.95337904,60571.0,60570.0,0.002646]
[1726644948289,0.88682076,60571.0,60570.0,0.002646]
[1726644953335,0.86091324,60571.0,60570.0,0.002646]
[1726644956700,0.88681972,60571.0,60570.0,0.002646]
[1726644961187,1.21701072,60571.0,60570.0,0.002646]
[1726644961422,1.336569,60571.0,60570.0,0.002646]
[1726644961882,1.41087509,60571.0,60570.0,0.002646]
[1726644962869,1.336569,60571.0,60570.0,0.002646]
[1726644963100,1.41087509,60571.0,60570.0,0.002646]
[1726644963330,1.38496861,60571.0,60570.0,0.002646]
[1726644964315,1.47556861,60571.0,60570.0,0.002646]
[1726644966710,1.50147562,60571.0,60570.0,0.002646]
[1726644968178,1.42716953,60571.0,60570.0,0.002646]
[1726644968654,1.42916953,60571.0,60570.0,0.002646]
[1726644969591,1.42716953,60571.0,60570.0,0.002646]
[1726644970585,1.52631651,60571.0,60570.0,0.002646]
[1726644972238,1.55111279,60571.0,60570.0,0.002646]
[1726644972702,1.42716953,60571.0,60570.0,0.002646]
[1726644972944,1.62543124,60571.0,60570.0,0.002646]
[1726644973406,1.50037481,60571.0,60570.0,0.002646]
[1726644976043,1.59952423,60571.0,60570.0,0.002646]
[1726644976601,1.6254318,60571.0,60570.0,0.002646]
[1726644977080,1.6006538,60571.0,60570.0,0.002646]
[1726644977804,1.52628238,60571.0,60570.0,0.002646]
[1726644978581,1.6254318,60571.0,60570.0,0.002646]
[1726644980694,1.6114318,60571.0,60570.0,0.002646]
[1726644980929,1.6254318,60571.0,60570.0,0.003646]
[1726644981161,1.6254318,60571.0,60570.0,0.002646]
[1726644981389,1.7996318,60571.0,60570.0,0.002646]
[1726644981638,1.6254318,60571.0,60570.0,0.002646]
[1726644982110,1.6114318,60571.0,60570.0,0.001646]
[1726644982351,1.6254318,60571.0,60570.0,0.001646]
[1726644982592,1.6394318,60571.0,60570.0,0.002646]
[1726644982828,1.6254318,60571.0,60570.0,0.002646]
[1726644983307,1.61352423,60571.0,60570.0,0.002646]
[1726644983541,1.58552423,60571.0,60570.0,0.001646]
[1726644983765,1.58552423,60571.0,60570.0,0.002646]
[1726644984035,1.58552423,60571.0,60570.0,0.001646]
[1726644984513,1.58552423,60571.0,60570.0,0.002646]
[1726644984514,1.61352423,60571.0,60570.0,0.002646]
[1726644985440,1.61357841,60571.0,60570.0,0.002646]
[1726644986614,1.58357841,60571.0,60570.0,0.002646]
[1726644986836,1.61357841,60571.0,60570.0,0.002646]
[1726644987987,1.63948533,60571.0,60570.0,0.002646]
[1726644988449,1.54888533,60571.0,60570.0,0.002646]
[1726644989376,0.66983276,60571.0,60570.0,0.002646]
[1726644989626,0.57062916,60571.0,60570.0,0.002646]
[1726644990110,0.90082016,60571.0,60570.0,0.002646]
[1726644990531,0.57062916,60571.0,60570.0,0.002646]
[1726644993174,0.90082016,60571.0,60570.0,0.002646]
[1726644993405,0.87491324,60571.0,60570.0,0.002646]
[1726644993642,0.54472224,60571.0,60570.0,0.002646]
[1726644994348,0.87491324,60571.0,60570.0,0.002646]
[1726644996265,0.54472224,60571.0,60570.0,0.002646]
[1726644996726,0.90081912,60571.0,60570.0,0.002646]
[1726644997213,0.57062812,60571.0,60570.0,0.002646]
[1726644998919,0.90081912,60571.0,60570.0,0.002646]
[1726645000828,0.88681912,60571.0,60570.0,0.002646]
[1726645001069,0.90081912,60571.0,60570.0,0.002646]
[1726645001306,1.4408684,60571.0,60570.0,0.002646]
[1726645001563,1.4428684,60571.0,60570.0,0.002646]
[1726645002516,1.4008684,60571.0,60570.0,0.001646]
[1726645002748,1.4148684,60571.0,60570.0,0.001646]
[1726645002981,1.4288684,60571.0,60570.0,0.001646]
[1726645003486,1.40296252,60571.0,60570.0,0.001646]
[1726645004177,1.40096252,60571.0,60570.0,0.001646]
[1726645004640,1.40296252,60571.0,60570.0,0.001646]
[1726645004877,1.40096252,60571.0,60570.0,0.001646]
[1726645006644,1.42686948,60571.0,60570.0,0.001646]
[1726645007874,1.42886948,60571.0,60570.0,0.001646]
[1726645008382,1.42686948,60571.0,60570.0,0.001646]
[1726645010600,1.06867848,60571.0,60570.0,0.001646]
[1726645011577,1.39886948,60571.0,60570.0,0.001646]
[1726645012048,1.42686948,60571.0,60570.0,0.001646]
[1726645012308,1.41286948,60571.0,60570.0,0.001646]
[1726645012543,1.06867848,60571.0,60570.0,0.001646]
[1726645012818,1.09667848,60571.0,60570.0,0.001646]
[1726645013343,1.07077152,60571.0,60570.0,0.001646]
[1726645014782,1.40096252,60571.0,60570.0,0.001646]
[1726645015012,1.07077152,60571.0,60570.0,0.001646]
[1726645015256,0.53072224,60571.0,60570.0,0.001646]
[1726645016470,0.5430001,60571.0,60570.0,0.001646]
[1726645016718,0.56890526,60571.0,60570.0,0.001646]
[1726645016948,0.5430001,60571.0,60570.0,0.001646]
[1726645019851,0.2128091,60571.0,60570.0,0.001646]
[1726645020091,0.23871421,60571.0,60570.0,0.001646]
[1726645020327,0.07361921,60571.0,60570.0,0.166744]
[1726645022030,0.07361921,60571.0,60570.0,0.917836]
[1726645022274,0.07361921,60571.0,60570.0,0.947836]
[1726645022604,0.07361921,60571.0,60570.0,1.52218567]
[1726645023107,0.04561921,60571.0,60570.0,1.52218567]
[1726645023384,0.0417141,60571.0,60570.0,1.52218567]
[1726645023628,0.0277141,60571.0,60570.0,1.52218567]
[1726645024129,0.0357141,60571.0,60570.0,1.52218567]
[1726645028046,0.06161482,60571.0,60570.0,1.52218567]
[1726645028293,0.06161482,60571.0,60570.0,1.19198967]
[1726645033347,0.0357141,60571.0,60570.0,1.19198967]
[1726645034060,0.0357141,60571.0,60570.0,1.52218567]
[1726645034292,0.0357141,60571.0,60570.0,1.19198967]
[1726645035473,0.0357141,60571.0,60570.0,1.52218567]
[1726645037876,0.06161466,60571.0,60570.0,1.52218567]
[1726645038374,0.06161466,60571.0,60570.0,1.95238167]
[1726645038625,0.06161466,60571.0,60570.0,1.62218567]
[1726645041013,0.06161466,60571.0,60570.0,1.95238167]
[1726645042218,0.06161466,60571.0,60570.0,1.97305519]
[1726645042443,0.06161466,60571.0,60570.0,1.95238167]
[1726645043427,0.0357141,60571.0,60570.0,1.97030494]
[1726645044175,0.0357141,60571.0,60570.0,1.64010894]
[1726645045580,0.0357141,60571.0,60570.0,1.73922123]
[1726645047243,0.0357141,60571.0,60570.0,1.72129796]
[1726645047478,0.0357141,60571.0,60570.0,1.7391595]
[1726645047736,0.0357141,60571.0,60570.0,1.7691595]
[1726645048022,0.06161219,60571.0,60570.0,2.1013555]
[1726645048254,0.06161219,60571.0,60570.0,2.15074192]
[1726645048488,0.06161219,60571.0,60570.0,2.16901541]
[1726645048752,0.05361219,60571.0,60570.0,2.08349396]
[1726645049000,0.05361219,60571.0,60570.0,2.11957992]
[1726645049246,0.04661219,60571.0,60570.0,2.25727156]
[1726645049486,0.04761219,60571.0,60570.0,2.18419192]
[1726645049952,0.04761219,60571.0,60570.0,2.18219192]
[1726645050180,0.04761219,60571.0,60570.0,2.18215719]
[1726645052145,0.04761219,60571.0,60570.0,2.18415719]
[1726645052387,0.04761219,60571.0,60570.0,2.16630239]
[1726645052630,0.04761219,60571.0,60570.0,2.18411588]
[1726645053386,0.0217141,60571.0,60570.0,2.18411588]
[1726645053614,0.0217141,60571.0,60570.0,2.33661718]
[1726645053872,0.0217141,60571.0,60570.0,2.21315111]
[1726645054399,0.0217141,60571.0,60570.0,2.28278146]
[1726645055059,0.0217141,60571.0,60570.0,2.21315445]
[1726645055297,0.0217141,60571.0,60570.0,2.28278192]
[1726645056025,0.0217141,60571.0,60570.0,2.26292494]
[1726645056261,0.0217141,60571.0,60570.0,2.28071888]
[1726645056734,0.0476117,60571.0,60570.0,2.28071888]
[1726645057906,0.0476117,60571.0,60570.0,2.18205284]
[1726645058661,0.0476117,60571.0,60570.0,2.15163334]
[1726645058898,0.0476117,60571.0,60570.0,1.53279161]
[1726645059149,0.0476117,60571.0,60570.0,1.68125857]
[1726645059398,0.0476117,60571.0,60570.0,1.5702919]
[1726645059642,0.0476117,60571.0,60570.0,1.57026706]
[1726645059876,0.0466117,60571.0,60570.0,1.56926706]
[1726645060112,0.0466117,60571.0,60570.0,1.56826706]
[1726645060356,0.0466117,60571.0,60570.0,1.57026706]
[1726645060867,0.0466117,60571.0,60570.0,1.56826706]
[1726645061336,0.0466117,60571.0,60570.0,1.64429709]
[1726645061543,0.0456117,60571.0,60570.0,1.64329709]
[1726645061673,0.0456117,60571.0,60570.0,1.64129709]
[1726645061907,0.0466117,60571.0,60570.0,1.64429709]
[1726645062111,0.0456117,60571.0,60570.0,1.64329709]
[1726645062554,0.0466117,60571.0,60570.0,1.64429709]
[1726645062979,0.0466117,60571.0,60570.0,1.57026706]
[1726645063223,0.0207141,60571.0,60570.0,1.57026706]
[1726645063404,0.0207141,60571.0,60570.0,1.60190301]
[1726645063611,0.0207141,60571.0,60570.0,1.61960088]
[1726645064244,0.0207141,60571.0,60570.0,1.57019583]
[1726645066274,0.0207141,60571.0,60570.0,1.64430108]
[1726645066488,0.04661189,60571.0,60570.0,1.62660321]
[1726645066952,0.04661189,60571.0,60570.0,1.57033631]
[1726645067404,0.04661189,60571.0,60570.0,1.64444156]
[1726645068083,0.04661189,60571.0,60570.0,1.57033631]
[1726645068345,0.04661189,60571.0,60570.0,1.64449397]
[1726645069706,0.04661189,60571.0,60570.0,1.67303533]
[1726645070180,0.04661189,60571.0,60570.0,1.64449397]
[1726645071360,0.04661189,60571.0,60570.0,1.57033631]
[1726645072284,0.04661189,60571.0,60570.0,1.59887492]
[1726645073193,0.0207141,60571.0,60570.0,1.59888067]
[1726645073471,0.0207141,60571.0,60570.0,1.69778735]
[1726645073693,0.0207141,60571.0,60570.0,1.66924414]
[1726645076620,0.04661208,60571.0,60570.0,1.66923669]
[1726645077316,0.04661208,60571.0,60570.0,1.5701244]
[1726645077560,0.04501208,60571.0,60570.0,1.66923669]
[1726645078250,0.04501208,60571.0,60570.0,1.57033001]
[1726645078954,0.04401208,60571.0,60570.0,1.56733001]
[1726645079182,0.04401208,60571.0,60570.0,1.57033001]
[1726645079397,0.04401208,60571.0,60570.0,1.69396336]
[1726645079623,0.04401208,60571.0,60570.0,1.69096336]
[1726645079883,0.04401208,60571.0,60570.0,1.59285107]
[1726645080107,0.04401208,60571.0,60570.0,1.69396336]
[1726645080547,0.04401208,60571.0,60570.0,1.57033001]
[1726645080761,0.04401208,60571.0,60570.0,1.47121772]
[1726645080991,0.04401208,60571.0,60570.0,1.57017439]
[1726645081461,0.04401208,60571.0,60570.0,1.47121772]
[1726645081686,0.04401208,60571.0,60570.0,1.57018502]
[1726645081899,0.04401208,60571.0,60570.0,1.56818502]
[1726645082127,0.04401208,60571.0,60570.0,1.56840995]
[1726645082386,0.04401208,60571.0,60570.0,1.47044265]
[1726645082607,0.04401208,60571.0,60570.0,1.46844265]
[1726645083051,0.04401208,60571.0,60570.0,1.47044265]
[1726645083266,0.0181141,60571.0,60570.0,1.47044265]
[1726645086650,0.04401323,60571.0,60570.0,1.47044265]
[1726645087760,0.04401323,60571.0,60570.0,0.07120704]
[1726645087761,0.13661323,60571.0,60570.0,0.07120704]
[1726645087988,0.73101152,60571.0,60570.0,0.003646]
[1726645088220,1.06120252,60571.0,60570.0,0.003646]
[1726645088944,1.06120252,60571.0,60570.0,0.002646]
[1726645089174,1.06120252,60571.0,60570.0,0.001646]
[1726645089175,1.15430252,60571.0,60570.0,0.001646]
[1726645089636,1.16830252,60571.0,60570.0,0.001646]
[1726645089871,1.18230252,60571.0,60570.0,0.001646]
[1726645090111,1.16830252,60571.0,60570.0,0.001646]
[1726645091048,1.49849352,60571.0,60570.0,0.001646]
[1726645091271,1.50049352,60571.0,60570.0,0.001646]
[1726645091503,1.49849352,60571.0,60570.0,0.001646]
[1726645091989,1.49849352,60571.0,60554.0,0.495419]
[1726645091990,0.330241,60562.0,60554.0,0.03]
[1726645092216,0.330272,60556.0,60554.0,0.03]
[1726645092439,0.330272,60556.0,60551.0,0.031646]
[1726645092706,0.330272,60556.0,60551.0,0.001646]
[1726645092707,1.01794729,60552.0,60551.0,0.001646]
[1726645093177,1.43014129,60552.0,60551.0,0.001646]
[1726645093657,0.588607,60544.0,60543.0,0.000823]
[1726645093893,1.07015215,60544.0,60543.0,0.000823]
[1726645094138,1.40049015,60544.0,60543.0,0.000823]
[1726645095315,1.07015215,60544.0,60543.0,0.000823]
[1726645096010,1.08015215,60544.0,60543.0,0.000823]
[1726645096230,1.08915215,60544.0,60543.0,0.000823]
[1726645096482,1.11506873,60544.0,60543.0,0.000823]
[1726645096945,1.11236293,60544.0,60543.0,0.000823]
[1726645099958,0.13801658,60544.0,60543.0,0.000823]
[1726645100189,0.04491658,60544.0,60543.0,0.000823]
[1726645100432,0.04491658,60544.0,60543.0,0.165994]
[1726645100913,0.04491658,60544.0,60543.0,0.000823]
[1726645103333,0.019,60544.0,60543.0,0.000823]
[1726645103966,0.019,60544.0,60543.0,0.496337]
[1726645105058,0.019823,60544.0,60543.0,0.496337]
[1726645105544,0.019823,60544.0,60543.0,0.165994]
[1726645105762,0.019823,60544.0,60543.0,0.496337]
[1726645106406,0.03160564,60544.0,60543.0,0.496337]
[1726645106613,0.05751954,60544.0,60543.0,0.496337]
[1726645107482,0.05751954,60544.0,60543.0,0.82668]
[1726645109830,0.05751954,60544.0,60543.0,1.157023]
[1726645110267,0.05751954,60544.0,60543.0,0.82668]
[1726645113458,0.03160564,60544.0,60543.0,0.82668]
[1726645117176,0.03160564,60544.0,60543.0,0.496337]
[1726645118152,0.05751841,60544.0,60543.0,0.496337]
[1726645119789,0.05751841,60544.0,60543.0,0.165994]
[1726645121209,0.05751841,60544.0,60543.0,0.496337]
[1726645123472,0.03160564,60544.0,60543.0,0.496337]
[1726645125436,0.03160564,60544.0,60543.0,0.82668]
[1726645125675,0.03160564,60544.0,60543.0,0.496337]
[1726645126650,0.05751848,60544.0,60543.0,0.496337]
[1726645126890,0.05751848,60544.0,60543.0,0.82668]
[1726645133292,0.03160564,60544.0,60543.0,0.82668]
[1726645134480,0.03160564,60544.0,60543.0,1.157023]
[1726645134746,0.03160564,60544.0,60543.0,1.187023]
[1726645134982,0.03160564,60544.0,60543.0,1.77921967]
[1726645135212,0.03160564,60544.0,60543.0,1.99699609]
[1726645135450,0.03160564,60544.0,60543.0,2.01490739]
[1726645135686,0.02160564,60544.0,60543.0,2.01490739]
[1726645136184,0.02360564,60544.0,60543.0,2.16595945]
[1726645136431,0.01660564,60544.0,60543.0,2.14805797]
[1726645136674,0.01660564,60544.0,60543.0,1.81771497]
[1726645136911,0.01660564,60544.0,60543.0,1.94149146]
[1726645137405,0.01660564,60544.0,60543.0,1.81771497]
[1726645137642,0.01660564,60544.0,60543.0,1.94149146]
[1726645137850,0.01760564,60544.0,60543.0,1.94149146]
[1726645138091,0.01860564,60544.0,60543.0,1.94149146]
[1726645138334,0.01360564,60544.0,60543.0,1.81771497]
[1726645138592,0.03951494,60544.0,60543.0,1.81771497]
[1726645138839,0.04151494,60544.0,60543.0,1.81771497]
[1726645139375,0.04151494,60544.0,60543.0,1.80002311]
[1726645139631,0.04151494,60544.0,60543.0,1.89602386]
[1726645139903,0.04151494,60544.0,60543.0,1.91670574]
[1726645143475,0.01560564,60544.0,60543.0,1.91670574]
[1726645143739,0.01560564,60544.0,60543.0,1.81790574]
[1726645143942,0.01560564,60544.0,60543.0,1.8178908]
[1726645144423,0.01560564,60544.0,60543.0,1.73843787]
[1726645144674,0.01560564,60544.0,60543.0,1.71775599]
[1726645144907,0.01560564,60544.0,60543.0,1.73843787]
[1726645147391,0.01560564,60544.0,60543.0,1.63942899]
[1726645148138,0.04151504,60544.0,60543.0,1.63942899]
[1726645148371,0.01529955,60544.0,60543.0,1.63942899]
[1726645149599,0.09767955,60544.0,60543.0,1.71366202]
[1726645151775,0.09767955,60544.0,60543.0,1.69605346]
[1726645152008,0.12358895,60544.0,60543.0,1.69605346]
[1726645152498,0.12358895,60544.0,60543.0,1.71360807]
[1726645153489,0.09767955,60544.0,60543.0,1.71360807]
[1726645153971,0.09767955,60544.0,60543.0,1.71359234]
[1726645154982,0.09767955,60544.0,60543.0,1.69291548]
[1726645155919,0.09767955,60544.0,60543.0,1.71359736]
[1726645156153,0.09767955,60544.0,60543.0,1.66168316]
[1726645156455,0.12358895,60544.0,60543.0,1.66168316]
[1726645157359,0.12358895,60544.0,60543.0,1.58746586]
[1726645158329,0.12358895,60544.0,60543.0,1.58746588]
[1726645159723,0.12358895,60544.0,60543.0,1.6616755]
[1726645161645,0.12358895,60544.0,60543.0,1.6409936]
[1726645161886,0.12358895,60544.0,60543.0,1.6616755]
[1726645163280,0.12358895,60544.0,60543.0,1.37075857]
[1726645163505,0.09767955,60544.0,60543.0,1.37076046]
[1726645163730,0.09767955,60544.0,60543.0,1.35007667]
[1726645164431,0.09767955,60544.0,60543.0,1.37076093]
[1726645165366,0.09667955,60544.0,60543.0,1.37076093]
[1726645165608,0.09467955,60544.0,60543.0,1.37076093]
[1726645165839,0.09967955,60544.0,60543.0,1.37076093]
[1726645166778,0.09467955,60544.0,60543.0,1.37076093]
[1726645167251,0.10067955,60544.0,60543.0,1.37076093]
[1726645167477,0.10067955,60544.0,60543.0,1.35007667]
[1726645167703,0.09467955,60544.0,60543.0,1.35007667]
[1726645167935,0.12058918,60544.0,60543.0,1.35007667]
[1726645168162,0.12558918,60544.0,60543.0,1.35007667]
[1726645168636,0.12658918,60544.0,60543.0,1.35007667]
[1726645168877,0.13158918,60544.0,60543.0,1.35007667]
[1726645169148,0.13158918,60544.0,60543.0,0.165994]
[1726645169380,0.10567955,60544.0,60543.0,0.195994]
[1726645170100,0.10067955,60544.0,60543.0,0.195994]
[1726645170332,0.09467955,60544.0,60543.0,0.195994]
[1726645170557,0.10267955,60544.0,60543.0,0.195994]
[1726645171503,0.10967955,60544.0,60543.0,0.195994]
[1726645171997,0.10967955,60544.0,60543.0,0.000823]
[1726645171998,1.29941184,60544.0,60543.0,0.000823]
[1726645172253,1.62974984,60544.0,60543.0,0.000823]
[1726645172690,1.63954997,60544.0,60543.0,0.000823]
[1726645172883,1.62974984,60544.0,60543.0,0.000823]
[1726645173147,1.62274984,60544.0,60543.0,0.000823]
[1726645173379,1.61474984,60544.0,60543.0,0.000823]
[1726645173612,1.62874984,60544.0,60543.0,0.000823]
[1726645174271,1.61474984,60544.0,60543.0,0.000823]
[1726645174508,1.62874984,60544.0,60543.0,0.000823]
[1726645174739,1.64274984,60544.0,60543.0,0.000823]
[1726645176333,1.31241184,60544.0,60543.0,0.000823]
[1726645176824,1.64274984,60544.0,60543.0,0.000823]
[1726645177496,1.62874984,60544.0,60543.0,0.000823]
[1726645177704,1.66866717,60544.0,60543.0,0.000823]
[1726645178083,1.65466717,60544.0,60543.0,0.000823]
[1726645178495,1.66866717,60544.0,60543.0,0.000823]
[1726645178925,1.67066717,60544.0,60543.0,0.000823]
[1726645179336,1.64266717,60544.0,60543.0,0.000823]
[1726645179548,1.67266717,60544.0,60543.0,0.000823]
[1726645179786,1.81666717,60544.0,60543.0,0.000823]
[1726645180210,1.83066717,60544.0,60543.0,0.000823]
[1726645180497,1.81666717,60544.0,60543.0,0.000823]
[1726645180671,1.83066717,60544.0,60543.0,0.000823]
[1726645181352,1.82866717,60544.0,60543.0,0.000823]
[1726645181559,1.81666717,60544.0,60543.0,0.000823]
[1726645181818,1.83066717,60544.0,60543.0,0.000823]
[1726645182465,1.81666717,60544.0,60543.0,0.000823]
[1726645182683,1.80266717,60544.0,60543.0,0.000823]
[1726645182908,1.81466717,60544.0,60543.0,0.000823]
[1726645183182,1.82866717,60544.0,60543.0,0.000823]
[1726645183408,1.67360216,60544.0,60543.0,0.000823]
[1726645183923,1.65960216,60544.0,60543.0,0.000823]
[1726645184169,1.67360216,60544.0,60543.0,0.000823]
[1726645184672,1.65960216,60544.0,60543.0,0.000823]
[1726645185168,1.84770216,60544.0,60543.0,0.000823]
[1726645185415,1.67360216,60544.0,60543.0,0.000823]
[1726645186658,1.69951955,60544.0,60543.0,0.000823]
[1726645190131,1.36918155,60544.0,60543.0,0.000823]
[1726645191186,1.33918155,60544.0,60543.0,0.000823]
[1726645191437,1.36918155,60544.0,60543.0,0.000823]
[1726645193166,1.52036994,60544.0,60543.0,0.000823]
[1726645193405,1.49445255,60544.0,60543.0,0.000823]
[1726645196444,1.34326416,60544.0,60543.0,0.000823]
[1726645196684,1.68398499,60544.0,60543.0,0.000823]
[1726645197169,1.35364699,60544.0,60543.0,0.000823]
[1726645197412,1.68398499,60544.0,60543.0,0.000823]
[1726645197659,1.35364699,60544.0,60543.0,0.000823]
[1726645198175,1.37956467,60544.0,60543.0,0.000823]
[1726645198415,1.70990267,60544.0,60543.0,0.000823]
[1726645198658,1.37956467,60544.0,60543.0,0.000823]
[1726645200549,1.34956467,60544.0,60543.0,0.000823]
[1726645200797,0.15898006,60544.0,60543.0,0.000823]
[1726645201062,0.29823138,60544.0,60543.0,0.000823]
[1726645201572,0.13306238,60544.0,60543.0,0.000823]
[1726645201847,0.61456938,60544.0,60543.0,0.000823]
[1726645202102,0.60056938,60544.0,60543.0,0.000823]
[1726645202362,0.28423138,60544.0,60543.0,0.000823]
[1726645202636,0.13306238,60544.0,60543.0,0.000823]
[1726645203127,0.11906238,60544.0,60543.0,0.165994]
[1726645203380,0.13306238,60544.0,60543.0,0.496337]
[1726645203857,0.13306238,60544.0,60543.0,0.165994]
[1726645204102,0.13306238,60544.0,60543.0,0.496337]
[1726645204347,0.13306238,60544.0,60543.0,1.187023]
[1726645204829,0.13306238,60544.0,60543.0,1.35007667]
[1726645205073,0.13306238,60544.0,60543.0,1.44927667]
[1726645205552,0.11906238,60544.0,60543.0,1.44927667]
[1726645206035,0.13306238,60544.0,60543.0,1.44927667]
[1726645206565,0.10506238,60544.0,60543.0,1.44927667]
[1726645206806,0.10906238,60544.0,60543.0,1.44927667]
[1726645208029,0.11206238,60544.0,60543.0,1.44927667]
[1726645208717,0.11206238,60544.0,60543.0,0.85668]
[1726645209276,0.11206238,60544.0,60543.0,0.000823]
[1726645209515,0.10906238,60544.0,60543.0,0.000823]
[1726645209755,0.27723138,60544.0,60543.0,0.000823]
[1726645210015,0.10806238,60544.0,60543.0,0.000823]
[1726645210804,0.11206238,60544.0,60543.0,0.000823]
[1726645211564,0.11206238,60544.0,60543.0,0.165994]
[1726645211779,0.10906238,60544.0,60543.0,0.165994]
[1726645212030,0.11606238,60544.0,60543.0,0.496337]
[1726645212286,0.11206238,60544.0,60543.0,0.496337]
[1726645212545,0.12106238,60544.0,60543.0,0.496337]
[1726645212801,0.12106238,60544.0,60543.0,0.165994]
[1726645215766,0.12106238,60544.0,60543.0,0.496337]
[1726645219270,0.14697516,60544.0,60543.0,0.496337]
[1726645220999,0.14697516,60544.0,60543.0,0.82668]
[1726645223514,0.12106238,60544.0,60543.0,0.82668]
[1726645227991,0.1469749,60544.0,60543.0,0.82668]
[1726645228492,0.1469749,60544.0,60543.0,0.85668]
[1726645228748,0.1469749,60544.0,60543.0,1.54215509]
[1726645228988,0.12106238,60544.0,60543.0,1.54215509]
[1726645229228,0.12106238,60544.0,60543.0,1.91075477]
[1726645229972,0.4676,60559.0,60543.0,1.91075477]
[1726645229973,0.4676,60559.0,60558.0,1.185913]
[1726645230248,0.0979,60570.0,60566.0,0.330215]
[1726645230504,0.0979,60570.0,60568.0,0.165102]
[1726645232187,0.12380479,60570.0,60568.0,0.165102]
[1726645232924,0.12380479,60570.0,60568.0,0.166102]
[1726645232925,0.13780479,60570.0,60568.0,0.166102]
[1726645233466,0.1119,60570.0,60568.0,0.166102]
[1726645233705,0.1259,60570.0,60568.0,0.002]
[1726645233941,0.277,60570.0,60568.0,0.001]
[1726645234186,0.263,60570.0,60566.0,0.165108]
[1726645234682,0.263,60570.0,60566.0,0.165109]
[1726645235172,0.0979,60570.0,60564.0,0.330228]
[1726645235412,0.1119,60570.0,60568.0,0.166103]
[1726645235649,0.1209,60570.0,60568.0,0.167102]
[1726645235885,0.1339,60570.0,60568.0,0.167102]
[1726645236116,0.0979,60570.0,60568.0,0.165102]
[1726645236353,0.1069,60570.0,60568.0,0.165102]
[1726645236595,0.1069,60570.0,60567.0,0.33021]